[Event "Late-Titled-Tuesday-Blitz-April-23-2024"]
[Site "Chess.com"]
[Date "2024.04.23"]
[Round "1"]
[White "Rud_Makarian"]
[Black "rdarruda"]
[Result "1-0"]
[WhiteElo "3049"]
[BlackElo "2529"]
[TimeControl "180+1"]
[EndTime "14:01:47 PDT"]
[Termination "Rud_Makarian won by resignation"]

1. d4 {[%clk 0:03:00.9]} 1... Nf6 {[%clk 0:02:58.8]} 2. Nf3 {[%clk 0:03:01.8]}
2... e6 {[%clk 0:02:57.9]} 3. c4 {[%clk 0:03:02]} 3... d5 {[%clk 0:02:58.1]} 4.
Nc3 {[%clk 0:02:59.9]} 4... Be7 {[%clk 0:02:57.9]} 5. Bf4 {[%clk 0:03:00.2]}
5... O-O {[%clk 0:02:56.9]} 6. e3 {[%clk 0:03:00.7]} 6... c5 {[%clk 0:02:55.9]}
7. dxc5 {[%clk 0:03:00.6]} 7... Qa5 {[%clk 0:02:54.1]} 8. a3 {[%clk 0:03:00.1]}
8... dxc4 {[%clk 0:02:52.6]} 9. Bxc4 {[%clk 0:02:59.8]} 9... Qxc5 {[%clk
0:02:52.6]} 10. Be2 {[%clk 0:02:55.4]} 10... Nc6 {[%clk 0:02:52]} 11. O-O {[%clk
0:02:53.4]} 11... Rd8 {[%clk 0:02:48.7]} 12. Qc1 {[%clk 0:02:44]} 12... Bd7
{[%clk 0:02:43.6]} 13. b4 {[%clk 0:02:39.7]} 13... Qf5 {[%clk 0:02:40.8]} 14.
Nh4 {[%clk 0:02:34.6]} 1-0

[Event "Late-Titled-Tuesday-Blitz-April-23-2024"]
[Site "Chess.com"]
[Date "2024.04.23"]
[Round "1"]
[White "WoodlandMagic"]
[Black "dosto07"]
[Result "1-0"]
[WhiteElo "2835"]
[BlackElo "2489"]
[TimeControl "180+1"]
[EndTime "14:01:52 PDT"]
[Termination "WoodlandMagic won by resignation"]

1. Nf3 {[%clk 0:02:56.7]} 1... d5 {[%clk 0:02:59.8]} 2. c4 {[%clk 0:02:54.2]}
2... d4 {[%clk 0:02:59.6]} 3. g3 {[%clk 0:02:52.7]} 3... Nc6 {[%clk 0:02:59.4]}
4. Bg2 {[%clk 0:02:52.2]} 4... e5 {[%clk 0:02:59.9]} 5. O-O {[%clk 0:02:51]}
5... Nf6 {[%clk 0:02:59.6]} 6. d3 {[%clk 0:02:49.5]} 6... Be7 {[%clk 0:02:56.2]}
7. b4 {[%clk 0:02:46.5]} 7... e4 {[%clk 0:02:51.9]} 8. dxe4 {[%clk 0:02:45.7]}
8... Bxb4 {[%clk 0:02:48.6]} 9. e5 {[%clk 0:02:32.2]} 9... Nd7 {[%clk 0:02:48]}
10. Bb2 {[%clk 0:02:23.9]} 10... Ndxe5 {[%clk 0:02:45.8]} 11. Nxe5 {[%clk
0:02:23.7]} 11... Nxe5 {[%clk 0:02:44.8]} 12. Qa4+ {[%clk 0:02:24.2]} 12... Nc6
{[%clk 0:02:43.3]} 13. Bxc6+ {[%clk 0:02:24.3]} 13... bxc6 {[%clk 0:02:43.7]}
14. Qxb4 {[%clk 0:02:24.8]} 14... Be6 {[%clk 0:02:42.9]} 15. Qc5 {[%clk
0:02:19.2]} 15... d3 {[%clk 0:02:39.2]} 16. Qxc6+ {[%clk 0:02:16.6]} 16... Bd7
{[%clk 0:02:38.8]} 17. Qe4+ {[%clk 0:02:15.8]} 1-0

[Event "Late-Titled-Tuesday-Blitz-April-23-2024"]
[Site "Chess.com"]
[Date "2024.04.23"]
[Round "1"]
[White "topotun"]
[Black "elmusmolamas"]
[Result "1-0"]
[WhiteElo "2845"]
[BlackElo "2491"]
[TimeControl "180+1"]
[EndTime "14:02:12 PDT"]
[Termination "topotun won by resignation"]

1. e4 {[%clk 0:02:59.3]} 1... c6 {[%clk 0:02:57.8]} 2. d4 {[%clk 0:02:59.1]}
2... g6 {[%clk 0:02:58.7]} 3. Nc3 {[%clk 0:02:57.9]} 3... Bg7 {[%clk 0:02:59.2]}
4. h3 {[%clk 0:02:57.9]} 4... d5 {[%clk 0:02:59.9]} 5. Nf3 {[%clk 0:02:57.9]}
5... dxe4 {[%clk 0:03:00]} 6. Nxe4 {[%clk 0:02:58.1]} 6... Nf6 {[%clk
0:03:00.9]} 7. Nxf6+ {[%clk 0:02:58.4]} 7... exf6 {[%clk 0:03:01.8]} 8. Bd3
{[%clk 0:02:58.6]} 8... O-O {[%clk 0:03:02.7]} 9. O-O {[%clk 0:02:58.9]} 9...
Nd7 {[%clk 0:03:00.6]} 10. c4 {[%clk 0:02:58.8]} 10... Nb6 {[%clk 0:02:58.8]}
11. b3 {[%clk 0:02:58]} 11... f5 {[%clk 0:02:53.5]} 12. Bg5 {[%clk 0:02:44.3]}
12... Qd6 {[%clk 0:02:46.6]} 13. c5 {[%clk 0:02:43.9]} 13... Qc7 {[%clk
0:02:43.8]} 14. cxb6 {[%clk 0:02:43.6]} 14... axb6 {[%clk 0:02:44.7]} 15. Qd2
{[%clk 0:02:37.5]} 15... Be6 {[%clk 0:02:45.2]} 16. Bc4 {[%clk 0:02:33.9]} 16...
Rfe8 {[%clk 0:02:43]} 17. Bh6 {[%clk 0:02:32]} 17... Bh8 {[%clk 0:02:43]} 18.
Rfe1 {[%clk 0:02:32.2]} 18... Qd7 {[%clk 0:02:38.7]} 19. Bxe6 {[%clk 0:02:28.8]}
19... Rxe6 {[%clk 0:02:39.6]} 20. Rxe6 {[%clk 0:02:28.6]} 20... Qxe6 {[%clk
0:02:40.5]} 21. Re1 {[%clk 0:02:28.3]} 21... Qd5 {[%clk 0:02:41]} 22. Qe2 {[%clk
0:02:26.9]} 22... Bg7 {[%clk 0:02:31.6]} 23. Qe8+ {[%clk 0:02:23.2]} 1-0

[Event "Late-Titled-Tuesday-Blitz-April-23-2024"]
[Site "Chess.com"]
[Date "2024.04.23"]
[Round "1"]
[White "Perecke"]
[Black "ZachHKL"]
[Result "1-0"]
[WhiteElo "2622"]
[BlackElo "2282"]
[TimeControl "180+1"]
[EndTime "14:02:24 PDT"]
[Termination "Perecke won by resignation"]

1. e4 {[%clk 0:03:00.9]} 1... c5 {[%clk 0:02:59.3]} 2. Nf3 {[%clk 0:03:01.2]}
2... Nc6 {[%clk 0:02:58.2]} 3. d4 {[%clk 0:03:01.3]} 3... cxd4 {[%clk
0:02:58.1]} 4. Nxd4 {[%clk 0:03:02.2]} 4... Nf6 {[%clk 0:02:57.9]} 5. Nc3 {[%clk
0:03:02.5]} 5... e5 {[%clk 0:02:57.8]} 6. Ndb5 {[%clk 0:03:02.6]} 6... d6 {[%clk
0:02:56.4]} 7. Nd5 {[%clk 0:03:02.6]} 7... Nxd5 {[%clk 0:02:54.2]} 8. exd5
{[%clk 0:03:02.2]} 8... Nb8 {[%clk 0:02:54.5]} 9. a4 {[%clk 0:03:02.1]} 9... a6
{[%clk 0:02:54.1]} 10. Na3 {[%clk 0:03:02]} 10... Be7 {[%clk 0:02:54.6]} 11. Be2
{[%clk 0:03:02.2]} 11... O-O {[%clk 0:02:54.8]} 12. O-O {[%clk 0:03:02.7]} 12...
f5 {[%clk 0:02:54.4]} 13. Bd2 {[%clk 0:03:03.3]} 13... Nd7 {[%clk 0:02:54.1]}
14. Nc4 {[%clk 0:03:03]} 14... Nf6 {[%clk 0:02:52.6]} 15. a5 {[%clk 0:03:01.9]}
15... Rb8 {[%clk 0:02:49.8]} 16. Bb4 {[%clk 0:03:01.9]} 16... Qc7 {[%clk
0:02:47.1]} 17. Nxe5 {[%clk 0:03:01.9]} 17... dxe5 {[%clk 0:02:37.5]} 18. d6
{[%clk 0:03:02.2]} 18... Qd7 {[%clk 0:02:34.1]} 19. dxe7 {[%clk 0:03:02.5]}
19... Re8 {[%clk 0:02:34.3]} 20. Bc4+ {[%clk 0:03:02.7]} 20... Kh8 {[%clk
0:02:33.4]} 21. Qxd7 {[%clk 0:03:02.1]} 21... Bxd7 {[%clk 0:02:31.4]} 22. Bf7
{[%clk 0:03:03]} 22... Rec8 {[%clk 0:02:31]} 23. Bd6 {[%clk 0:03:00.2]} 23...
Ra8 {[%clk 0:02:29.9]} 24. Bxe5 {[%clk 0:02:58.9]} 24... Rc6 {[%clk 0:02:25.1]}
25. Rfd1 {[%clk 0:02:57.8]} 25... Be8 {[%clk 0:02:24.3]} 26. Rd8 {[%clk
0:02:57]} 26... Rcc8 {[%clk 0:02:22.4]} 27. Rad1 {[%clk 0:02:56.9]} 27... h6
{[%clk 0:01:53.6]} 28. Bxf6 {[%clk 0:02:55.8]} 28... gxf6 {[%clk 0:01:52.8]} 29.
Rxc8 {[%clk 0:02:56.3]} 29... Rxc8 {[%clk 0:01:51.7]} 30. Rd8 {[%clk 0:02:56.9]}
1-0

[Event "Late-Titled-Tuesday-Blitz-April-23-2024"]
[Site "Chess.com"]
[Date "2024.04.23"]
[Round "1"]
[White "AniJak"]
[Black "amanmuhammethommadov"]
[Result "0-1"]
[WhiteElo "2397"]
[BlackElo "2704"]
[TimeControl "180+1"]
[EndTime "14:02:34 PDT"]
[Termination "amanmuhammethommadov won by resignation"]

1. e4 {[%clk 0:02:57.4]} 1... e5 {[%clk 0:02:59.3]} 2. Nf3 {[%clk 0:02:56]} 2...
Nf6 {[%clk 0:02:59.6]} 3. Nxe5 {[%clk 0:02:54.5]} 3... d5 {[%clk 0:02:59.9]} 4.
exd5 {[%clk 0:02:49.2]} 4... Qxd5 {[%clk 0:03:00.8]} 5. d4 {[%clk 0:02:48.1]}
5... Nc6 {[%clk 0:03:00.7]} 6. Nxc6 {[%clk 0:02:45.1]} 6... Qxc6 {[%clk
0:03:00.9]} 7. Nc3 {[%clk 0:02:44.1]} 7... Bb4 {[%clk 0:03:01]} 8. Bd2 {[%clk
0:02:26.5]} 8... O-O {[%clk 0:03:00.3]} 9. Qf3 {[%clk 0:02:22.4]} 9... Re8+
{[%clk 0:03:00.3]} 10. Be2 {[%clk 0:02:22.6]} 10... Bxc3 {[%clk 0:03:00.5]} 11.
bxc3 {[%clk 0:02:16.9]} 11... Bg4 {[%clk 0:02:59.7]} 12. Qxc6 {[%clk 0:02:03.2]}
12... Rxe2+ {[%clk 0:02:58.9]} 13. Kd1 {[%clk 0:02:00.8]} 13... Rxf2+ {[%clk
0:02:58.1]} 14. Qf3 {[%clk 0:01:59.1]} 14... Rxf3 {[%clk 0:02:58.2]} 15. gxf3
{[%clk 0:01:57.5]} 15... Bxf3+ {[%clk 0:02:58.5]} 16. Ke1 {[%clk 0:01:43.9]}
16... Re8+ {[%clk 0:02:53.8]} 17. Kf2 {[%clk 0:01:43.8]} 17... Bxh1 {[%clk
0:02:54.1]} 18. Rxh1 {[%clk 0:01:43]} 18... Ne4+ {[%clk 0:02:54.4]} 19. Ke3
{[%clk 0:01:29.5]} 19... Ng3+ {[%clk 0:02:54]} 20. Kd3 {[%clk 0:01:29.3]} 20...
Nxh1 {[%clk 0:02:54.9]} 0-1

[Event "Late-Titled-Tuesday-Blitz-April-23-2024"]
[Site "Chess.com"]
[Date "2024.04.23"]
[Round "1"]
[White "Orest_Vovk"]
[Black "SmirnovTimofey2000"]
[Result "1-0"]
[WhiteElo "2557"]
[BlackElo "1977"]
[TimeControl "180+1"]
[EndTime "14:02:43 PDT"]
[Termination "Orest_Vovk won by checkmate"]

1. h4 {[%clk 0:03:00.9]} 1... h5 {[%clk 0:02:41.6]} 2. Nf3 {[%clk 0:02:59.9]}
2... Nf6 {[%clk 0:02:41.1]} 3. Ng5 {[%clk 0:03:00]} 3... Nc6 {[%clk 0:02:33.1]}
4. Nc3 {[%clk 0:02:59.1]} 4... e5 {[%clk 0:02:24.5]} 5. e4 {[%clk 0:02:55.6]}
5... Bc5 {[%clk 0:02:17.2]} 6. Bc4 {[%clk 0:02:54.7]} 6... O-O {[%clk
0:02:02.8]} 7. d3 {[%clk 0:02:41.7]} 7... Na5 {[%clk 0:02:00.7]} 8. Bd5 {[%clk
0:02:30.6]} 8... Nxd5 {[%clk 0:01:59]} 9. Nxd5 {[%clk 0:02:27.4]} 9... c6 {[%clk
0:01:51.2]} 10. Qxh5 {[%clk 0:02:25.5]} 10... Re8 {[%clk 0:01:25.5]} 11. Qh7+
{[%clk 0:02:24]} 11... Kf8 {[%clk 0:01:25.4]} 12. Qh8# {[%clk 0:02:24.7]} 1-0

[Event "Late-Titled-Tuesday-Blitz-April-23-2024"]
[Site "Chess.com"]
[Date "2024.04.23"]
[Round "1"]
[White "campochess"]
[Black "Josetricks"]
[Result "0-1"]
[WhiteElo "2150"]
[BlackElo "2581"]
[TimeControl "180+1"]
[EndTime "14:03:22 PDT"]
[Termination "Josetricks won by resignation"]

1. e4 {[%clk 0:02:57.9]} 1... g6 {[%clk 0:03:00.9]} 2. d4 {[%clk 0:02:57.2]}
2... Bg7 {[%clk 0:03:01.8]} 3. Nc3 {[%clk 0:02:56.4]} 3... c6 {[%clk 0:03:02.3]}
4. Nf3 {[%clk 0:02:54.2]} 4... d5 {[%clk 0:03:02.8]} 5. exd5 {[%clk 0:02:53.5]}
5... cxd5 {[%clk 0:03:03]} 6. Bf4 {[%clk 0:02:51.9]} 6... Bg4 {[%clk 0:02:58.5]}
7. h3 {[%clk 0:02:50.2]} 7... Bxf3 {[%clk 0:02:57.2]} 8. Qxf3 {[%clk 0:02:47.3]}
8... e6 {[%clk 0:02:57.4]} 9. Be5 {[%clk 0:02:41.4]} 9... Bxe5 {[%clk
0:02:54.8]} 10. dxe5 {[%clk 0:02:40.5]} 10... Nc6 {[%clk 0:02:55.7]} 11. Bb5
{[%clk 0:02:39.1]} 11... Ne7 {[%clk 0:02:52]} 12. Qf6 {[%clk 0:02:28.9]} 12...
O-O {[%clk 0:02:46.2]} 13. O-O {[%clk 0:02:19.3]} 13... Nf5 {[%clk 0:02:31.1]}
14. Bxc6 {[%clk 0:02:13.6]} 14... bxc6 {[%clk 0:02:26.3]} 15. Qxd8 {[%clk
0:02:12]} 15... Rfxd8 {[%clk 0:02:26]} 16. Ne2 {[%clk 0:02:10.7]} 16... Rab8
{[%clk 0:02:24.5]} 17. b3 {[%clk 0:02:09.4]} 17... a5 {[%clk 0:02:25.2]} 18. a4
{[%clk 0:02:08]} 18... c5 {[%clk 0:02:25.5]} 19. Nc3 {[%clk 0:02:02.6]} 19...
Nd4 {[%clk 0:02:24.8]} 20. Rac1 {[%clk 0:01:58.2]} 20... Rdc8 {[%clk 0:02:24.8]}
21. Rfe1 {[%clk 0:01:57.5]} 21... c4 {[%clk 0:02:24.9]} 22. Red1 {[%clk
0:01:39.5]} 22... cxb3 {[%clk 0:02:21.5]} 23. cxb3 {[%clk 0:01:32.1]} 23... Rxc3
{[%clk 0:02:21.4]} 24. Rxc3 {[%clk 0:01:27.1]} 24... Ne2+ {[%clk 0:02:21.4]} 25.
Kf1 {[%clk 0:01:26]} 25... Nxc3 {[%clk 0:02:22.3]} 0-1

[Event "Late-Titled-Tuesday-Blitz-April-23-2024"]
[Site "Chess.com"]
[Date "2024.04.23"]
[Round "1"]
[White "MarcoRiehle"]
[Black "Caterpiller35"]
[Result "1-0"]
[WhiteElo "2787"]
[BlackElo "2450"]
[TimeControl "180+1"]
[EndTime "14:03:34 PDT"]
[Termination "MarcoRiehle won by resignation"]

1. e4 {[%clk 0:02:59.1]} 1... c5 {[%clk 0:02:57.3]} 2. a3 {[%clk 0:02:58.8]}
2... g6 {[%clk 0:02:55.4]} 3. h4 {[%clk 0:02:58.3]} 3... h5 {[%clk 0:02:53.7]}
4. Nc3 {[%clk 0:02:57.7]} 4... Bg7 {[%clk 0:02:54.2]} 5. Bc4 {[%clk 0:02:56.9]}
5... e6 {[%clk 0:02:52.8]} 6. d3 {[%clk 0:02:57.2]} 6... Nc6 {[%clk 0:02:52.6]}
7. Bg5 {[%clk 0:02:56.7]} 7... Nge7 {[%clk 0:02:52.3]} 8. Qd2 {[%clk 0:02:56.4]}
8... a6 {[%clk 0:02:50.6]} 9. Nge2 {[%clk 0:02:50.3]} 9... b5 {[%clk 0:02:50.2]}
10. Bb3 {[%clk 0:02:50.2]} 10... Nd4 {[%clk 0:02:50.5]} 11. Nxd4 {[%clk
0:02:49.7]} 11... cxd4 {[%clk 0:02:45]} 12. Ne2 {[%clk 0:02:49.5]} 12... Qb6
{[%clk 0:02:44.7]} 13. Bxe7 {[%clk 0:02:47.9]} 13... Kxe7 {[%clk 0:02:45.6]} 14.
O-O-O {[%clk 0:02:47]} 14... Bb7 {[%clk 0:02:40.7]} 15. Kb1 {[%clk 0:02:46.4]}
15... a5 {[%clk 0:02:39.8]} 16. f4 {[%clk 0:02:43.9]} 16... Rhc8 {[%clk
0:02:38.5]} 17. f5 {[%clk 0:02:42.8]} 17... Rab8 {[%clk 0:02:22.2]} 18. fxg6
{[%clk 0:02:38.5]} 18... fxg6 {[%clk 0:02:22.3]} 19. Qg5+ {[%clk 0:02:37.8]}
19... Kf7 {[%clk 0:02:18.9]} 20. Nf4 {[%clk 0:02:31.1]} 20... Rc5 {[%clk
0:02:06.7]} 21. Qxg6+ {[%clk 0:02:30.1]} 21... Kg8 {[%clk 0:02:06.9]} 22. g4
{[%clk 0:02:08.8]} 22... a4 {[%clk 0:01:57]} 23. Nxh5 {[%clk 0:01:54.3]} 23...
Rxh5 {[%clk 0:01:53.6]} 24. gxh5 {[%clk 0:01:55.2]} 24... axb3 {[%clk
0:01:54.1]} 25. Rdg1 {[%clk 0:01:53.1]} 25... bxc2+ {[%clk 0:01:48.2]} 1-0

[Event "Late-Titled-Tuesday-Blitz-April-23-2024"]
[Site "Chess.com"]
[Date "2024.04.23"]
[Round "1"]
[White "SRob2003"]
[Black "Veganator13"]
[Result "1-0"]
[WhiteElo "2669"]
[BlackElo "2359"]
[TimeControl "180+1"]
[EndTime "14:04:03 PDT"]
[Termination "SRob2003 won by resignation"]

1. c4 {[%clk 0:03:00.4]} 1... g6 {[%clk 0:02:59]} 2. g3 {[%clk 0:03:00.4]} 2...
Bg7 {[%clk 0:02:59.4]} 3. Bg2 {[%clk 0:02:59.7]} 3... c5 {[%clk 0:03:00.1]} 4.
Nc3 {[%clk 0:02:59.4]} 4... Nc6 {[%clk 0:03:00.6]} 5. Nf3 {[%clk 0:03:00.1]}
5... d6 {[%clk 0:03:01.1]} 6. d4 {[%clk 0:03:00.7]} 6... cxd4 {[%clk 0:02:59.3]}
7. Nb5 {[%clk 0:03:00]} 7... e5 {[%clk 0:02:58.8]} 8. e3 {[%clk 0:02:56.6]} 8...
a6 {[%clk 0:02:58.5]} 9. Na3 {[%clk 0:02:57.1]} 9... dxe3 {[%clk 0:02:53.9]} 10.
Bxe3 {[%clk 0:02:58]} 10... Nf6 {[%clk 0:02:54.2]} 11. O-O {[%clk 0:02:57]}
11... O-O {[%clk 0:02:54.4]} 12. Bg5 {[%clk 0:02:56.4]} 12... Be6 {[%clk
0:02:53.8]} 13. Qd2 {[%clk 0:02:49.7]} 13... Ne4 {[%clk 0:02:50.7]} 14. Qe3
{[%clk 0:02:45.5]} 14... Nxg5 {[%clk 0:02:50.2]} 15. Nxg5 {[%clk 0:02:46.4]}
15... Bf5 {[%clk 0:02:48.4]} 16. Ne4 {[%clk 0:02:40.9]} 16... Nd4 {[%clk
0:02:46]} 17. Rfd1 {[%clk 0:02:40]} 17... Rc8 {[%clk 0:02:43.2]} 18. Rac1 {[%clk
0:02:37.5]} 18... h5 {[%clk 0:02:39.7]} 19. Nc2 {[%clk 0:02:35.2]} 19... h4
{[%clk 0:02:39]} 20. Nxd4 {[%clk 0:02:32]} 20... exd4 {[%clk 0:02:39.9]} 21. Qf4
{[%clk 0:02:28.1]} 21... h3 {[%clk 0:02:32.1]} 22. Bf3 {[%clk 0:02:25.5]} 22...
Be5 {[%clk 0:02:32.4]} 23. Qh6 {[%clk 0:02:17.2]} 23... Bg7 {[%clk 0:02:30.1]}
24. Qf4 {[%clk 0:02:16.8]} 24... Be5 {[%clk 0:02:22.9]} 25. Qh6 {[%clk
0:02:15.8]} 25... Bxe4 {[%clk 0:01:44]} 26. Bxe4 {[%clk 0:02:15.7]} 26... b5
{[%clk 0:01:44.9]} 27. Bd5 {[%clk 0:02:10.1]} 27... Qf6 {[%clk 0:01:38]} 28.
Qxh3 {[%clk 0:02:09.7]} 28... bxc4 {[%clk 0:01:35.9]} 29. Bxc4 {[%clk
0:02:10.2]} 29... d3 {[%clk 0:01:31.6]} 30. Bxf7+ {[%clk 0:02:05.8]} 30... Rxf7
{[%clk 0:01:29.5]} 31. Rxc8+ {[%clk 0:02:03.7]} 31... Rf8 {[%clk 0:01:29.7]} 32.
Rxf8+ {[%clk 0:02:03.8]} 32... Kxf8 {[%clk 0:01:30.6]} 33. Rxd3 {[%clk
0:02:02.6]} 1-0

[Event "Late-Titled-Tuesday-Blitz-April-23-2024"]
[Site "Chess.com"]
[Date "2024.04.23"]
[Round "1"]
[White "MaryanKyrychenko"]
[Black "JSPrepz"]
[Result "0-1"]
[WhiteElo "2471"]
[BlackElo "2816"]
[TimeControl "180+1"]
[EndTime "14:04:06 PDT"]
[Termination "JSPrepz won by resignation"]

1. e4 {[%clk 0:02:57.7]} 1... e5 {[%clk 0:02:59.7]} 2. Nf3 {[%clk 0:02:53.8]}
2... Nc6 {[%clk 0:02:59.7]} 3. d4 {[%clk 0:02:54.5]} 3... exd4 {[%clk
0:02:59.3]} 4. Nxd4 {[%clk 0:02:55.4]} 4... Nf6 {[%clk 0:02:58.9]} 5. Nxc6
{[%clk 0:02:55.7]} 5... bxc6 {[%clk 0:02:59.8]} 6. e5 {[%clk 0:02:56.4]} 6...
Ne4 {[%clk 0:02:56.9]} 7. Bd3 {[%clk 0:02:52.4]} 7... Nc5 {[%clk 0:02:57.2]} 8.
O-O {[%clk 0:02:53]} 8... Be7 {[%clk 0:02:53.2]} 9. Nc3 {[%clk 0:02:46.3]} 9...
O-O {[%clk 0:02:52.9]} 10. Qh5 {[%clk 0:02:44.9]} 10... Nxd3 {[%clk 0:02:52]}
11. cxd3 {[%clk 0:02:45.1]} 11... d5 {[%clk 0:02:52.4]} 12. d4 {[%clk
0:02:43.4]} 12... Rb8 {[%clk 0:02:50.8]} 13. a3 {[%clk 0:02:40.3]} 13... Qd7
{[%clk 0:02:50.1]} 14. h3 {[%clk 0:02:39.1]} 14... Qf5 {[%clk 0:02:42.5]} 15.
Qxf5 {[%clk 0:02:38.6]} 15... Bxf5 {[%clk 0:02:43.4]} 16. g4 {[%clk 0:02:37.8]}
16... Bd3 {[%clk 0:02:36.1]} 17. Rd1 {[%clk 0:02:27.2]} 17... Bc2 {[%clk
0:02:35]} 18. Re1 {[%clk 0:02:26.5]} 18... Rb3 {[%clk 0:02:32.9]} 19. f4 {[%clk
0:02:24.9]} 19... Rd8 {[%clk 0:02:21.8]} 20. Kg2 {[%clk 0:02:17.7]} 20... c5
{[%clk 0:02:16.1]} 21. Re2 {[%clk 0:02:14]} 21... Bd3 {[%clk 0:01:42.9]} 22. Rd2
{[%clk 0:02:13.9]} 22... Bc4 {[%clk 0:01:39.6]} 23. dxc5 {[%clk 0:02:00.7]}
23... d4 {[%clk 0:01:34.8]} 24. Ne4 {[%clk 0:01:51.9]} 24... Bd5 {[%clk
0:01:26.9]} 25. Re2 {[%clk 0:01:51.8]} 25... d3 {[%clk 0:01:19.7]} 26. Re1
{[%clk 0:01:51.3]} 26... d2 {[%clk 0:01:17.7]} 0-1

[Event "Late-Titled-Tuesday-Blitz-April-23-2024"]
[Site "Chess.com"]
[Date "2024.04.23"]
[Round "1"]
[White "Vahe_Danielyan"]
[Black "Andrii_Prydun"]
[Result "1-0"]
[WhiteElo "2697"]
[BlackElo "2388"]
[TimeControl "180+1"]
[EndTime "14:04:10 PDT"]
[Termination "Vahe_Danielyan won by resignation"]

1. d4 {[%clk 0:02:58.5]} 1... d5 {[%clk 0:02:59.8]} 2. c4 {[%clk 0:02:58.4]}
2... e6 {[%clk 0:03:00.2]} 3. Nc3 {[%clk 0:02:57.1]} 3... Nf6 {[%clk 0:03:00.2]}
4. cxd5 {[%clk 0:02:56.8]} 4... exd5 {[%clk 0:02:59.8]} 5. Bg5 {[%clk
0:02:56.4]} 5... Be7 {[%clk 0:02:58.9]} 6. e3 {[%clk 0:02:55.9]} 6... c6 {[%clk
0:02:42.6]} 7. Bd3 {[%clk 0:02:55.2]} 7... Bg4 {[%clk 0:02:40.5]} 8. Nge2 {[%clk
0:02:49.6]} 8... Nbd7 {[%clk 0:02:37.1]} 9. O-O {[%clk 0:02:47.6]} 9... Nf8
{[%clk 0:02:36.8]} 10. f3 {[%clk 0:02:46.8]} 10... Bh5 {[%clk 0:02:33]} 11. Ng3
{[%clk 0:02:39.9]} 11... Bg6 {[%clk 0:02:32.4]} 12. Qc2 {[%clk 0:02:27.6]} 12...
Bxd3 {[%clk 0:02:30.9]} 13. Qxd3 {[%clk 0:02:24.3]} 13... h6 {[%clk 0:02:21.3]}
14. Bf4 {[%clk 0:02:19.9]} 14... Ng6 {[%clk 0:02:19.6]} 15. Be5 {[%clk
0:02:17.2]} 15... Bd6 {[%clk 0:02:07.2]} 16. Bxd6 {[%clk 0:02:13.5]} 16... Qxd6
{[%clk 0:02:07.1]} 17. Nf5 {[%clk 0:02:14.4]} 17... Qf8 {[%clk 0:02:07.1]} 18.
e4 {[%clk 0:02:01.7]} 18... dxe4 {[%clk 0:01:57.3]} 19. fxe4 {[%clk 0:02:02.6]}
19... Ne7 {[%clk 0:01:56.9]} 20. e5 {[%clk 0:02:02.3]} 20... Nxf5 {[%clk
0:01:53]} 21. Rxf5 {[%clk 0:02:03.2]} 21... Ng8 {[%clk 0:01:47.8]} 22. Raf1
{[%clk 0:01:58.3]} 22... Ne7 {[%clk 0:01:44.8]} 23. R5f3 {[%clk 0:01:53.5]}
23... Rd8 {[%clk 0:01:39]} 24. Ne4 {[%clk 0:01:53.1]} 24... Nc8 {[%clk
0:01:34.7]} 25. Qb3 {[%clk 0:01:49.8]} 25... Rd7 {[%clk 0:01:32.8]} 26. e6
{[%clk 0:01:48.7]} 26... Re7 {[%clk 0:01:23.3]} 27. exf7+ {[%clk 0:01:48.3]}
27... Kd8 {[%clk 0:01:22.4]} 28. Nc5 {[%clk 0:01:48.5]} 1-0

[Event "Late-Titled-Tuesday-Blitz-April-23-2024"]
[Site "Chess.com"]
[Date "2024.04.23"]
[Round "1"]
[White "A4RookA3"]
[Black "ReadySkate"]
[Result "0-1"]
[WhiteElo "2369"]
[BlackElo "2677"]
[TimeControl "180+1"]
[EndTime "14:04:18 PDT"]
[Termination "ReadySkate won by resignation"]

1. d4 {[%clk 0:02:55.5]} 1... Nf6 {[%clk 0:02:59.8]} 2. Bf4 {[%clk 0:02:55.6]}
2... g6 {[%clk 0:03:00.1]} 3. Nc3 {[%clk 0:02:55.3]} 3... d5 {[%clk 0:03:00.1]}
4. e3 {[%clk 0:02:55.4]} 4... Bg7 {[%clk 0:03:00.5]} 5. Nb5 {[%clk 0:02:54.5]}
5... Na6 {[%clk 0:03:00.3]} 6. Nc3 {[%clk 0:02:55.2]} 6... O-O {[%clk 0:03:00]}
7. Bxa6 {[%clk 0:02:54.4]} 7... bxa6 {[%clk 0:03:00.9]} 8. Be5 {[%clk
0:02:55.2]} 8... a5 {[%clk 0:03:00.8]} 9. Nge2 {[%clk 0:02:54.1]} 9... Ba6
{[%clk 0:02:55.9]} 10. O-O {[%clk 0:02:54]} 10... Qd7 {[%clk 0:02:49.9]} 11. b3
{[%clk 0:02:48.9]} 11... Rac8 {[%clk 0:02:47.8]} 12. Na4 {[%clk 0:02:44.8]}
12... Qb5 {[%clk 0:02:37.8]} 13. Re1 {[%clk 0:02:34.5]} 13... Nd7 {[%clk
0:02:37]} 14. Bxg7 {[%clk 0:02:33.9]} 14... Kxg7 {[%clk 0:02:37.9]} 15. Rc1
{[%clk 0:02:14.1]} 15... e6 {[%clk 0:02:35.9]} 16. c4 {[%clk 0:02:00.7]} 16...
dxc4 {[%clk 0:02:29.4]} 17. bxc4 {[%clk 0:02:01.6]} 17... Qg5 {[%clk 0:02:22.7]}
18. Qd2 {[%clk 0:01:46.7]} 18... Rb8 {[%clk 0:02:17]} 19. Ng3 {[%clk 0:01:39.6]}
19... Rb4 {[%clk 0:02:13.5]} 20. Ne4 {[%clk 0:01:35.9]} 20... Qh4 {[%clk
0:02:10.6]} 21. Nec5 {[%clk 0:01:24.7]} 21... Nxc5 {[%clk 0:02:02.1]} 22. Nxc5
{[%clk 0:01:25.6]} 22... Bc8 {[%clk 0:01:50.7]} 23. a3 {[%clk 0:01:25.6]} 23...
Rb6 {[%clk 0:01:48.6]} 24. Qxa5 {[%clk 0:01:26]} 24... Rb2 {[%clk 0:01:48.3]}
25. g3 {[%clk 0:01:14.7]} 25... Qf6 {[%clk 0:01:44.2]} 26. Qxc7 {[%clk
0:01:11.6]} 26... Qxf2+ {[%clk 0:01:41.4]} 0-1